bitfinex/quotes_ETHUSD_20241001
["timestamp","ask_amount","ask_price","bid_price","bid_amount"]
[1727765886611,0.127173,2663.6,2663.5,3.79799265]
[1727765886786,0.127173,2663.6,2663.5,4.34799265]
[1727765886983,0.127173,2663.6,2663.5,7.34799265]
[1727765887187,0.127173,2663.6,2663.5,0.04354265]
[1727765887809,0.127173,2663.6,2663.5,4.30445]
[1727765888010,0.127173,2663.6,2663.5,8.15890147]
[1727765888527,0.127173,2663.6,2663.5,0.85445147]
[1727765888845,0.127173,2663.6,2663.5,0.0410339]
[1727765889246,0.127173,2663.6,2662.9,6.75525]
[1727765889247,0.127173,2663.6,2663.1,3.75489]
[1727765889567,0.127173,2663.6,2663.2,3.82996107]
[1727765889852,0.127173,2663.6,2663.3,3.7547]
[1727765890009,0.127173,2663.6,2663.2,0.03975422]
[1727765890360,3.75449,2663.5,2663.3,0.03972021]
[1727765890656,3.75479,2663.3,2662.5,3.75585]
[1727765890823,3.75449,2663.5,2663.4,0.03966006]
[1727765891143,3.75449,2663.5,2662.8,0.07509188]
[1727765891342,3.75469,2663.4,2662.9,0.04006288]
[1727765891509,3.75488,2663.2,2662.9,0.04006288]
[1727765891704,3.75488,2663.2,2662.3,3.75609]
[1727765891705,3.75512,2663.1,2662.4,0.07509351]
[1727765891968,3.75534,2662.9,2662.4,0.45822289]
[1727765892144,3.75503,2663.1,2662.4,0.07510454]
[1727765892355,3.75526,2663.0,2662.5,0.03775912]
[1727765892564,3.75531,2662.9,2662.5,0.03775912]
[1727765892764,3.75473,2663.4,2662.7,3.75544]
[1727765893007,3.881523,2663.6,2662.8,0.375544]
[1727765893179,3.881523,2663.6,2663.0,3.75502]
[1727765893180,0.127173,2663.6,2663.0,3.75502]
[1727765893485,3.881513,2663.6,2662.9,3.79541874]
[1727765893778,3.75447,2663.5,2663.0,0.52968547]
[1727765893976,3.881513,2663.6,2663.0,0.52968547]
[1727765894822,3.75449,2663.5,2663.0,0.52968547]
[1727765895036,3.75449,2663.5,2663.1,0.42848555]
[1727765895238,3.75449,2663.5,2663.1,0.4658679]
[1727765895461,3.881513,2663.6,2663.1,0.03738235]
[1727765895744,3.881513,2663.6,2662.8,0.375544]
[1727765895745,3.75471,2663.4,2662.8,0.375544]
[1727765896084,3.7549,2663.2,2662.9,0.0374556]
[1727765896377,3.75464,2663.4,2662.9,2.02175556]
[1727765896755,3.75516,2663.0,2662.9,0.0374556]
[1727765896956,3.75488,2663.2,2662.9,0.0374556]
[1727765897683,0.127173,2663.6,2662.9,0.11255687]
[1727765897900,3.881493,2663.6,2662.9,3.86776687]
[1727765898041,0.127173,2663.6,2663.0,4.14192669]
[1727765898241,0.127173,2663.6,2663.2,3.75487]
[1727765898441,0.127173,2663.6,2663.3,0.07508106]
[1727765898690,0.127173,2663.6,2663.3,0.03727773]
[1727765898979,0.127173,2663.6,2663.0,23.57192669]
[1727765899189,0.127173,2663.6,2663.4,0.03720973]
[1727765899343,3.881573,2663.6,2663.1,2.35719267]
[1727765899548,0.127173,2663.6,2663.2,0.03733527]
[1727765899747,3.881503,2663.6,2663.2,0.03733527]
[1727765899958,7.635953,2663.6,2663.2,0.03733527]
[1727765900165,3.7546,2663.4,2663.2,0.03733527]
[1727765900486,3.7546,2663.4,2663.0,19.43]
[1727765900697,3.7546,2663.4,2663.3,0.03987596]
[1727765900857,3.75478,2663.3,2663.0,19.43]
[1727765901048,3.7546,2663.4,2663.0,19.43]
[1727765901049,3.75488,2663.2,2663.0,19.43]
[1727765901249,3.7546,2663.4,2663.0,19.43]
[1727765902644,3.7546,2663.4,2662.4,7.41]
[1727765902645,3.75525,2663.0,2662.4,3.756]
[1727765902845,3.75544,2662.8,2662.4,19.43]
[1727765903191,3.75544,2662.8,2661.7,3.75695]
[1727765903192,3.75601,2662.4,2661.8,23.18679]
[1727765903400,3.7558,2662.6,2661.4,3.75735]
[1727765903401,3.75659,2662.0,2661.4,3.75735]
[1727765903689,3.75632,2662.2,2661.4,3.75735]
[1727765903690,3.75633,2662.2,2661.5,3.75726]
[1727765903863,3.75611,2662.4,2661.6,0.45837387]
[1727765904059,7.51222,2662.4,2661.8,3.75675]
[1727765904376,3.0,2662.9,2661.3,19.43]
[1727765904696,4.23154644,2663.1,2661.8,3.75677]
[1727765904697,3.75601,2662.4,2661.8,3.75677]
[1727765904997,3.75596,2662.5,2661.9,4.58306461]
[1727765905192,3.7561,2662.4,2661.9,0.751365]
[1727765905553,3.7561,2662.4,2661.9,4.508035]
[1727765905751,4.23154644,2663.4,2662.0,19.43]
[1727765906106,3.75526,2663.0,2662.1,21.9981365]
[1727765906404,3.75492,2663.2,2662.2,0.07510485]
[1727765906595,3.75492,2663.2,2662.5,7.5115]
[1727765906751,3.75497,2663.2,2662.5,3.83084364]
[1727765906979,3.75506,2663.1,2662.6,3.75571]
[1727765907182,0.127173,2663.6,2662.6,0.07510364]
[1727765907355,0.127173,2663.6,2662.8,0.55]
[1727765907698,0.127173,2663.6,2663.2,7.50953]
[1727765907855,0.127173,2663.6,2663.3,0.07508501]
[1727765908056,0.127173,2663.6,2663.4,3.75458]
[1727765908309,0.127173,2663.6,2663.3,0.07508501]
[1727765909869,0.127173,2663.6,2663.3,3.82971501]
[1727765910200,0.127173,2663.6,2663.4,0.08193048]
[1727765910561,0.127173,2663.6,2663.2,0.750953]
[1727765910805,3.881543,2663.6,2663.3,0.5326837]
[1727765911007,0.127173,2663.6,2663.3,0.0820874]
[1727765911154,0.127173,2663.6,2663.0,3.8302099]
[1727765911155,3.75447,2663.5,2663.0,3.8302099]
[1727765911604,3.75447,2663.5,2663.1,0.07062967]
[1727765911759,7.50904,2663.5,2663.1,0.07062967]
[1727765911960,3.75447,2663.5,2663.1,0.07062967]
[1727765912279,0.127173,2663.6,2663.1,0.1457195]
[1727765912490,0.127173,2663.6,2663.2,3.75482]
[1727765912672,0.127173,2663.6,2663.3,4.14472395]
[1727765912999,3.75447,2663.5,2663.3,0.46041458]
[1727765913200,3.75447,2663.5,2663.3,0.07036063]
[1727765913397,3.75459,2663.4,2663.0,19.43]
[1727765913561,3.75447,2663.5,2663.4,0.08193048]
[1727765913761,3.75447,2663.5,2663.0,19.43]
[1727765913969,3.75447,2663.5,2663.1,0.08240128]
[1727765914159,3.75482,2663.3,2663.1,0.08240128]
[1727765914405,3.75452,2663.5,2663.1,0.08240128]
[1727765914885,0.127173,2663.6,2663.1,0.08240128]
[1727765915201,3.75485,2663.3,2663.1,0.08240128]
[1727765915403,3.75483,2663.3,2663.1,0.08240128]
[1727765915607,3.75488,2663.2,2662.7,3.75552]
[1727765915910,3.75502,2663.1,2662.4,3.756]
[1727765916062,3.75546,2662.8,2662.2,3.7562]
[1727765916266,3.75588,2662.5,2662.1,19.43]
[1727765916520,3.75588,2662.5,2661.9,3.7567]
[1727765916659,3.75602,2662.4,2661.8,23.18676]
[1727765916860,8.72467675,2663.0,2661.4,30.59736]
[1727765916861,4.96946675,2662.6,2661.4,30.59736]
[1727765917205,4.96946675,2662.6,2661.2,3.7576]
[1727765917206,3.75698,2661.8,2661.2,3.7576]
[1727765917406,3.75685,2661.9,2661.2,3.7576]
[1727765917621,3.75684,2661.9,2661.3,3.75755]
[1727765917966,3.75689,2661.8,2661.2,3.7576]
[1727765918395,3.75606,2662.4,2661.2,3.7576]
[1727765918599,3.75681,2661.9,2661.2,2.32627424]
[1727765918801,4.96946675,2662.2,2661.0,23.18791]
[1727765919170,3.75746,2661.4,2660.8,23.18821]
[1727765919259,3.75723,2661.6,2660.8,3.75821]
[1727765919467,3.75723,2661.6,2661.0,3.75794]
[1727765919817,3.75728,2661.5,2660.8,3.83331195]
[1727765920118,3.75728,2661.5,2661.0,3.75794]
[1727765920300,3.75728,2661.5,2661.1,0.7849]
[1727765920482,3.75728,2661.5,2660.9,2.32633119]
[1727765920675,7.51466,2661.5,2660.9,2.32633119]
[1727765920879,3.75759,2661.3,2660.9,2.32633119]
[1727765921093,0.7807,2661.1,2660.6,3.75845]
[1727765921464,0.7807,2661.1,2660.4,4.54366]
[1727765921465,3.75802,2661.0,2660.4,4.54366]
[1727765921668,0.7807,2661.1,2660.5,3.75865]
[1727765921669,0.7744,2660.9,2660.5,3.75865]
[1727765921918,3.0,2661.7,2660.7,0.7753]
[1727765922095,3.75754,2661.4,2660.9,0.7786]
[1727765922314,3.75768,2661.3,2660.9,0.7786]
[1727765922913,3.75739,2661.5,2660.9,4.61178074]
[1727765923067,3.75731,2661.5,2661.0,0.7786]
[1727765923469,4.52117,2661.3,2660.7,3.75836]
[1727765923808,0.7636,2661.5,2661.0,4.51924]
[1727765923986,0.7636,2661.5,2661.0,4.971164]
[1727765923987,4.52089,2661.5,2661.0,4.971164]
[1727765924187,3.75729,2661.5,2661.0,4.971164]
[1727765924410,0.675662,2661.9,2661.0,4.971164]
[1727765924411,4.5207,2661.7,2661.0,4.971164]
[1727765924616,7.5142,2661.7,2661.1,4.51911]
[1727765924914,3.75714,2661.6,2661.1,4.51911]
[1727765925268,3.7571,2661.7,2661.1,4.51911]
[1727765925464,3.7571,2661.7,2661.1,5.09887433]
[1727765925669,3.75678,2661.9,2661.3,0.8016]
[1727765926112,3.75678,2661.9,2661.3,3.75754]
[1727765926320,3.75649,2662.1,2661.5,0.8272]
[1727765926556,3.75661,2662.0,2661.5,0.8272]
[1727765926764,4.53731,2662.0,2661.3,7.59014584]
[1727765927067,4.53728,2662.0,2661.4,6.08363758]
[1727765927364,4.53728,2662.0,2661.5,0.8251]
[1727765927365,3.75667,2662.0,2661.5,0.8251]
[1727765927526,3.75609,2662.4,2661.7,0.8251]
[1727765927864,3.75609,2662.4,2661.8,0.8251]
[1727765927865,3.75631,2662.2,2661.8,0.8251]
[1727765928156,3.75609,2662.4,2661.8,0.8251]
[1727765928514,7.5122,2662.4,2661.9,0.7656]
[1727765928718,3.75609,2662.4,2661.9,0.7656]
[1727765929418,3.75634,2662.2,2661.9,0.7656]
[1727765929614,3.75549,2662.8,2661.9,0.7656]
[1727765929615,3.75579,2662.6,2661.9,0.7656]
[1727765929816,7.51129,2662.7,2662.1,3.75642]
[1727765930116,3.7556,2662.7,2662.2,0.7656]
[1727765930535,3.7556,2662.7,2662.3,0.7625]
[1727765931538,7.51078,2662.9,2662.3,0.7625]
[1727765931850,3.75558,2662.7,2662.3,0.7625]
[1727765932174,4.662263,2663.6,2662.3,0.7625]
[1727765932175,3.75598,2662.5,2662.3,0.7625]
[1727765932563,7.51194,2662.5,2662.3,0.7625]
[1727765932960,3.75596,2662.5,2662.3,0.7625]
[1727765933178,3.756,2662.4,2662.3,0.7625]
[1727765933751,7.23480537,2663.1,2662.3,0.7625]
[1727765933995,7.23480537,2663.1,2662.0,19.43]
[1727765933996,3.75545,2662.8,2662.4,0.07512137]
[1727765934208,3.75545,2662.8,2662.5,0.7905]
[1727765935118,1.09897254,2663.0,2662.5,0.7905]
[1727765935119,3.75572,2662.6,2662.5,0.7905]
[1727765936367,3.75572,2662.6,2662.0,4.57137]
[1727765936608,3.75603,2662.4,2662.0,0.8149]
[1727765936810,3.75595,2662.5,2662.0,3.215053]
[1727765937834,3.75635,2662.2,2662.0,2.400153]
[1727765938016,3.75617,2662.3,2661.7,4.56207]
[1727765938311,3.7807,2663.0,2661.8,0.7531]
[1727765938478,3.75588,2662.5,2662.0,0.7531]
[1727765938672,3.75588,2662.5,2662.0,1.204073]
[1727765940411,0.7807,2662.8,2662.0,0.7531]
[1727765940412,5.01550537,2662.8,2662.0,0.7531]
[1727765940614,3.75616,2662.3,2661.7,0.7609]
[1727765940778,3.75643,2662.1,2661.7,0.7609]
[1727765940978,3.75643,2662.1,2661.7,3.155695]
[1727765941373,7.51242,2662.3,2661.7,6.912605]
[1727765941611,3.75618,2662.3,2661.7,6.912605]
[1727765942674,7.99034537,2662.8,2661.7,6.912605]
[1727765942675,3.75553,2662.8,2662.2,3.75626]
[1727765942869,3.75553,2662.8,2662.3,0.7822]
[1727765943140,3.75542,2662.9,2662.4,3.756]
[1727765943322,3.75509,2663.1,2662.6,0.7822]
[1727765943501,3.881543,2663.6,2661.4,12.28]
[1727765943502,0.127173,2663.6,2662.9,0.827]
[1727765943818,3.75499,2663.2,2662.9,0.827]
[1727765945414,3.75497,2663.2,2662.9,0.827]
[1727765945569,3.881563,2663.6,2662.9,0.827]
[1727765945872,0.127173,2663.6,2663.2,0.805]
[1727765946100,0.127173,2663.6,2663.5,0.805]
[1727765949010,0.127173,2663.6,2663.1,20.1908]
[1727765949203,0.127173,2663.6,2663.1,23.9458]
[1727765949423,3.881583,2663.6,2663.1,20.1908]
[1727765949616,0.127173,2663.6,2663.1,20.1908]
[1727765949922,0.127173,2663.6,2663.1,23.94572]
[1727765950284,0.127173,2663.6,2663.1,20.1908]
[1727765950520,3.881503,2663.6,2663.1,20.1908]
[1727765950721,0.127173,2663.6,2663.1,23.94572]
[1727765951019,0.127173,2663.6,2663.2,3.75478]
[1727765951210,0.127173,2663.6,2663.3,0.8267]
[1727765951925,0.127173,2663.6,2663.5,4.53775]
[1727765952106,0.127173,2663.6,2663.5,4.61282712]
[1727765953307,0.127173,2663.6,2663.5,0.7833]
[1727765953623,0.127173,2663.6,2663.5,1.61254]
[1727765955306,0.127173,2663.6,2663.0,6.75511]
[1727765955613,3.881513,2663.6,2663.1,0.825]
[1727765955815,3.75454,2663.5,2663.1,0.825]
[1727765956540,0.907873,2663.6,2663.1,0.825]
[1727765956720,3.75452,2663.5,2663.1,0.825]
[1727765957225,3.75476,2663.3,2663.1,0.825]
[1727765957771,3.75503,2663.1,2662.7,0.7665]
[1727765957973,3.75503,2663.1,2662.8,0.452217]
[1727765958150,7.51015,2663.1,2662.8,0.452217]
[1727765958316,7.51013,2663.1,2662.7,0.7665]
[1727765958503,3.75518,2663.0,2662.7,0.7665]
[1727765958707,3.0,2663.5,2662.7,0.7665]
[1727765958907,3.75544,2662.8,2662.4,0.7674]
[1727765959152,3.7556,2662.7,2662.4,3.16276]
[1727765959672,3.75544,2662.8,2662.4,3.16276]
[1727765960043,7.51102,2662.8,2662.4,3.16276]
[1727765960375,3.75544,2662.8,2662.4,3.16276]
[1727765960519,7.51099,2662.8,2662.4,3.16276]
[1727765960718,3.75544,2662.8,2662.4,3.16276]
[1727765960956,3.75559,2662.7,2662.4,3.16276]
[1727765961343,3.75573,2662.6,2662.4,0.7674]
[1727765961544,3.75544,2662.8,2662.4,0.7674]
[1727765962871,0.127173,2663.6,2662.6,0.7642]
[1727765963024,3.881503,2663.6,2663.1,0.7642]
[1727765963228,0.127173,2663.6,2663.1,0.83928735]
[1727765963454,0.127173,2663.6,2663.2,3.75485]
[1727765963976,0.127173,2663.6,2663.3,3.75473]
[1727765964184,0.127173,2663.6,2663.4,1.65605378]
[1727765964433,0.127173,2663.6,2663.4,5.33548674]
[1727765964577,0.127173,2663.6,2663.4,1.58096674]
[1727765964778,0.127173,2663.6,2663.2,3.75482]
[1727765965024,0.127173,2663.6,2662.4,3.75593]
[1727765965025,0.7807,2663.1,2661.9,0.75]
[1727765965240,3.7563,2662.2,2661.9,0.75]
[1727765966476,3.75644,2662.1,2661.9,0.75]
[1727765968822,3.75657,2662.0,2661.9,0.75]
[1727765968986,3.75657,2662.0,2661.4,0.8213]
[1727765969182,3.75657,2662.0,2661.5,0.38213]
[1727765969379,3.75644,2662.1,2661.4,0.8213]
[1727765969380,3.75674,2661.9,2661.4,0.8213]
[1727765969776,3.75701,2661.7,2661.4,0.8213]
[1727765970204,3.7565,2662.1,2661.4,0.8213]
[1727765970429,3.75679,2661.9,2661.4,0.8213]
[1727765970582,3.7565,2662.1,2661.4,1.654956]
[1727765970777,0.07696897,2662.4,2661.4,1.654956]
[1727765970778,3.75672,2661.9,2661.4,1.654956]
[1727765970981,3.75654,2662.1,2661.4,0.8213]
[1727765971192,0.07696897,2662.4,2661.4,0.8213]
[1727765971382,3.75683,2661.9,2661.4,0.8213]
[1727765971615,3.75694,2661.8,2661.4,1.279194]
[1727765972715,3.75693,2661.8,2661.4,1.279194]
[1727765972919,3.75693,2661.8,2661.4,0.8213]
[1727765973233,3.75683,2661.9,2661.4,0.8213]
[1727765973394,3.75689,2661.8,2661.4,0.8213]
[1727765974095,3.75661,2662.0,2661.4,0.8213]
[1727765974309,3.75679,2661.9,2661.4,0.8213]
[1727765974638,3.75661,2662.0,2661.4,0.8213]
[1727765974639,3.75688,2661.8,2661.4,0.8213]
[1727765974929,3.75702,2661.7,2661.4,0.8213]
[1727765975327,3.75688,2661.8,2661.4,0.8213]
[1727765977231,3.75704,2661.7,2661.4,0.8213]
[1727765977426,3.75688,2661.8,2661.4,0.8213]
[1727765978501,3.75703,2661.7,2661.4,0.8213]
[1727765978696,3.75715,2661.6,2661.4,0.8213]
[1727765979009,3.75715,2661.6,2661.0,19.43]
[1727765979010,3.75727,2661.5,2661.1,0.7674]
[1727765979401,3.75715,2661.6,2661.1,0.7674]
[1727765979729,3.7575,2661.4,2661.0,19.43]
[1727765980030,0.7807,2662.0,2661.1,4.51392]
[1727765980231,3.75708,2661.7,2661.1,4.51392]
[1727765980435,3.75693,2661.8,2661.2,3.75768]
[1727765980806,3.75693,2661.8,2661.1,4.51392]
[1727765981128,3.75693,2661.8,2661.2,3.75761]
[1727765981337,3.75693,2661.8,2661.2,3.8309537]
[1727765981837,3.75637,2662.2,2661.4,3.75731]
[1727765982017,3.75639,2662.2,2661.5,3.89603328]
[1727765982218,7.51328,2662.0,2661.5,0.8209]
[1727765982431,3.75661,2662.0,2661.5,0.8209]
[1727765983554,3.75661,2662.0,2661.5,4.57813]
[1727765985721,3.75661,2662.0,2661.5,0.8209]
[1727765985722,3.7568,2661.9,2661.5,0.8209]
[1727765985965,3.75661,2662.0,2661.5,0.8209]
[1727765986256,3.75671,2661.9,2661.5,0.8209]
[1727765986410,3.75661,2662.0,2661.5,0.8209]
[1727765986605,7.5133,2662.0,2661.5,0.8209]
[1727765987154,3.75661,2662.0,2661.5,0.8209]
[1727765987327,3.75672,2661.9,2661.5,0.8209]
[1727765987510,4.24691459,2662.0,2661.5,0.8209]
[1727765988009,0.07696897,2661.9,2661.5,0.8209]
[1727765988210,3.75693,2661.8,2661.5,0.8209]
[1727765990249,3.75713,2661.6,2661.5,0.8209]
[1727765990424,8.265806,2661.6,2661.2,0.8055]
[1727765990619,3.75732,2661.5,2661.2,0.8055]
[1727765990809,3.75756,2661.3,2661.2,0.8055]
[1727765991009,3.75742,2661.4,2661.0,20.2301]
[1727765991209,3.75744,2661.4,2661.0,20.2301]
[1727765992057,0.771,2661.3,2661.0,19.43]
[1727765992302,3.75806,2661.0,2660.5,0.7786]
[1727765992408,7.51557,2661.2,2660.5,23.96721]
[1727765992611,3.75786,2661.1,2660.5,23.96721]
[1727765992852,3.75786,2661.1,2660.6,3.75853]
[1727765993014,3.75775,2661.2,2660.6,3.75853]
[1727765993214,3.75775,2661.2,2660.6,3.75847]
[1727765993455,7.59251897,2661.2,2660.6,3.75847]
[1727765993839,3.75822,2660.9,2660.5,20.2086]
[1727765994042,3.75807,2661.0,2660.5,20.2086]
[1727765995342,3.75807,2661.0,2660.5,23.96727]
[1727765995655,3.75807,2661.0,2660.5,0.7786]
[1727765996026,4.5941019,2661.2,2660.5,4.61232587]
[1727765996238,3.75775,2661.2,2660.5,4.61232587]
[1727765996753,3.75775,2661.2,2660.7,3.75839]
[1727765997430,3.83446897,2661.4,2660.8,0.8026]
[1727765997629,3.75773,2661.2,2660.8,0.8026]
[1727765998776,3.75707,2661.7,2661.1,3.75776]
[1727765999073,3.75707,2661.7,2661.2,4.5102]
[1727765999288,3.7568,2661.9,2661.3,3.75746]
[1727765999474,3.75686,2661.8,2661.3,3.75746]
[1727766000268,3.75686,2661.8,2661.3,23.18746]
[1727766000477,4.24690459,2662.0,2661.5,3.75725]
[1727766000478,0.49030459,2662.0,2661.5,3.75725]
[1727766000636,4.9204059,2662.2,2661.6,3.75706]
[1727766000637,4.1397059,2662.2,2661.6,3.75706]
[1727766000977,3.75658,2662.0,2661.5,3.75725]
[1727766001473,4.1397059,2662.2,2661.5,3.75718]
[1727766001889,0.07696897,2662.4,2661.4,0.7905]
[1727766001890,3.75658,2662.0,2661.4,0.7905]
[1727766002039,3.75679,2661.9,2661.4,0.7905]
[1727766002245,7.59019897,2662.0,2661.4,4.54783]
[1727766002494,3.75637,2662.2,2661.6,3.75711]
[1727766002793,3.75643,2662.1,2661.6,3.75711]
[1727766002980,3.75637,2662.2,2661.7,4.57399]
[1727766003184,7.51274,2662.2,2661.7,0.817]
[1727766003395,3.83303897,2662.4,2661.7,0.817]
[1727766003570,0.7807,2662.9,2662.2,0.7931]
[1727766003781,3.75537,2662.9,2662.2,0.7931]
[1727766004083,3.75509,2663.1,2662.3,3.75604]
[1727766004306,4.58385897,2663.3,2662.6,4.54873]
[1727766004307,4.50689,2663.3,2662.6,4.54873]
[1727766004444,3.75517,2663.0,2662.6,0.7931]
[1727766004648,3.75511,2663.1,2662.6,0.7931]
[1727766004987,3.83212897,2663.0,2662.6,0.7931]
[1727766005182,3.83212897,2663.0,2662.3,19.43]
[1727766005183,3.75553,2662.8,2662.3,20.2082]
[1727766005997,3.75518,2663.0,2662.3,23.96426]
[1727766006173,3.75547,2662.8,2662.3,20.2082]
[1727766006340,3.75518,2663.0,2662.3,23.96432]
[1727766006985,3.75518,2663.0,2662.3,25.69217231]
[1727766007186,3.75518,2663.0,2662.4,3.756]
[1727766007488,3.75503,2663.1,2662.5,3.75583]
[1727766007790,3.75503,2663.1,2662.3,6.26217231]
[1727766007791,7.19512385,2662.9,2662.3,0.7937]
[1727766007961,3.75542,2662.9,2662.3,0.7937]
[1727766008147,4.130663,2663.0,2662.4,3.75596]
[1727766008349,3.75506,2663.1,2662.4,3.75596]
[1727766008687,3.75506,2663.1,2662.3,4.54984]
[1727766008860,3.7552,2663.0,2662.4,3.756]
[1727766009057,3.75506,2663.1,2662.4,3.756]
[1727766009286,4.5918099,2663.1,2662.4,3.756]
[1727766009514,3.75518,2663.0,2662.4,3.756]
[1727766009872,3.75518,2663.0,2662.5,0.7987]
[1727766010074,3.75534,2662.9,2662.5,0.7987]
[1727766010277,3.75534,2662.9,2662.0,23.1865]
[1727766010278,7.19539385,2662.7,2662.4,0.7987]
[1727766010517,0.375534,2662.8,2662.4,0.7987]
[1727766010809,0.375534,2662.8,2662.0,3.7565]
[1727766010810,3.75569,2662.7,2662.1,0.7746]
[1727766011020,7.19539385,2662.7,2662.1,0.7746]
[1727766011175,3.75574,2662.6,2662.1,0.7746]
[1727766011372,4.59043279,2662.7,2662.1,0.7746]
[1727766012370,4.27444664,2662.7,2662.1,0.7746]
[1727766012570,3.75598,2662.5,2662.1,0.7746]
[1727766012793,3.75598,2662.5,2661.6,0.8119]
[1727766012794,3.75669,2662.0,2661.6,0.8119]
[1727766013198,3.75699,2661.7,2661.1,0.7748]
[1727766013406,3.75685,2661.8,2661.1,4.53261]
[1727766013571,3.75675,2661.9,2661.4,3.75741]
[1727766013773,3.75645,2662.1,2661.5,3.75719]
[1727766014196,3.75667,2662.0,2661.4,3.75738]
[1727766014379,3.75645,2662.1,2661.5,3.75726]
[1727766014604,3.75659,2662.0,2661.4,3.75738]
[1727766014990,3.75645,2662.1,2661.5,3.75726]
[1727766015392,7.96561385,2662.3,2661.7,0.7976]
[1727766015393,3.75621,2662.3,2661.7,0.7976]
[1727766015706,3.75637,2662.2,2661.7,0.7976]
[1727766015884,3.75643,2662.1,2661.7,0.7976]
[1727766016081,3.75671,2661.9,2661.4,0.7945]
[1727766016289,3.7569,2661.8,2661.4,0.7945]
[1727766016782,3.75671,2661.9,2661.4,0.7945]
[1727766017014,0.7888178,2662.2,2661.4,4.55179]
[1727766017196,3.75632,2662.2,2661.6,3.75704]
[1727766017582,3.75653,2662.1,2661.5,3.75725]
[1727766017777,3.75632,2662.2,2661.6,3.75708]
[1727766018012,3.75632,2662.2,2661.6,3.75705]
[1727766018224,4.53678,2662.4,2661.6,3.75705]
[1727766018225,3.75608,2662.4,2661.8,3.75677]
[1727766018394,0.07696897,2662.6,2661.9,3.75669]
[1727766018607,3.7559,2662.5,2661.9,3.75669]
[1727766018797,3.7559,2662.5,2661.8,3.75677]
[1727766018798,3.75565,2662.7,2662.1,0.7538]
[1727766018978,3.75544,2662.8,2662.1,3.7538]
[1727766019184,3.75544,2662.8,2662.2,3.7562]
[1727766019487,3.83231897,2662.9,2662.1,0.7538]
[1727766019488,3.7558,2662.6,2662.1,0.7538]
[1727766019680,3.75558,2662.7,2662.1,4.51021]
[1727766019885,3.75558,2662.7,2662.2,3.75627]
[1727766020503,3.75558,2662.7,2662.1,4.51014]
[1727766020699,0.3832319,2662.8,2662.3,3.75615]
[1727766020878,0.3832319,2662.8,2662.3,3.75611]
[1727766021082,0.3832319,2662.8,2662.2,3.75617]
[1727766021083,3.75538,2662.9,2662.4,3.75597]
[1727766021324,3.75538,2662.9,2662.5,0.7909]
[1727766021624,3.75517,2663.0,2662.5,0.7909]
[1727766022115,3.75517,2663.0,2662.5,4.54675]
[1727766022311,7.27184282,2663.0,2662.5,0.7909]
[1727766022622,3.75547,2662.8,2662.5,0.7909]
[1727766023425,4.48248428,2662.9,2662.5,0.7909]
[1727766023723,3.75546,2662.8,2662.5,0.7909]
[1727766024855,0.72718428,2662.9,2662.5,0.7909]
[1727766025232,4.48252428,2662.9,2662.5,0.7909]
[1727766025429,0.72718428,2662.9,2662.5,0.7909]
[1727766026157,4.48257428,2662.9,2662.5,0.7909]
[1727766026367,3.75546,2662.8,2662.5,0.7909]
[1727766026532,0.72718428,2662.9,2662.5,0.7909]
[1727766026733,4.48250428,2662.9,2662.5,0.7909]
[1727766027170,0.72718428,2662.9,2662.5,0.7909]
[1727766028072,4.48250428,2662.9,2662.5,0.7909]
[1727766028260,3.75554,2662.8,2662.5,0.7909]
[1727766030682,3.75531,2662.9,2662.5,0.7909]
[1727766031063,4.506361,2662.9,2662.5,0.7909]
[1727766031577,0.751051,2662.9,2662.5,0.7909]
[1727766031983,3.7552,2663.0,2662.5,0.7909]
[1727766032139,3.75533,2662.9,2662.5,0.7909]
[1727766032765,3.7552,2663.0,2662.5,0.7909]
[1727766032971,3.75532,2662.9,2662.5,0.7909]
[1727766033172,3.7552,2663.0,2662.5,0.7909]
[1727766033356,4.13084,2662.9,2662.5,0.7909]
[1727766033772,0.37552,2662.9,2662.5,4.54667]
[1727766033941,3.7552,2663.0,2662.5,4.54667]
[1727766034340,3.7552,2663.0,2662.5,0.7909]
[1727766035388,3.7552,2663.0,2662.5,4.54675]
[1727766035883,3.7552,2663.0,2662.5,0.7909]
[1727766036121,4.13072,2663.0,2662.5,0.7909]
[1727766036238,7.50996,2663.2,2662.5,8.30247]
[1727766036443,3.75509,2663.1,2662.5,4.54665]
[1727766036638,3.83193897,2663.2,2662.5,4.54665]
[1727766036839,3.75545,2662.8,2662.5,0.7909]
[1727766037077,3.75522,2663.0,2662.5,0.7909]
[1727766037078,8.29121,2663.0,2662.5,0.7909]
[1727766037245,3.75522,2663.0,2662.5,0.7909]
[1727766037457,3.75546,2662.8,2662.5,0.7909]
[1727766038204,3.75539,2662.9,2662.5,0.7909]
[1727766039055,3.75518,2663.0,2662.5,0.7909]
[1727766039606,3.75534,2662.9,2662.5,0.7909]
[1727766040873,7.51075,2662.9,2662.5,0.7909]
[1727766041074,3.7557,2662.7,2662.5,0.7909]
[1727766041389,2.3346,2662.6,2660.0,20.70454545]
[1727766041589,2.3346,2662.6,2659.3,0.75742115]
[1727766041590,3.76081,2659.0,2658.3,2.73123344]
[1727766041770,3.76081,2659.0,2657.9,0.59101316]
[1727766041771,0.78741832,2658.8,2657.9,0.59101316]
[1727766042097,1.18112748,2659.6,2658.1,1.86701907]
[1727766042401,1.18112748,2660.0,2658.2,0.2694279]
[1727766042599,1.18112748,2660.0,2657.9,0.59101316]
[1727766042600,1.18112748,2659.7,2658.3,0.07520781]
[1727766042895,0.0874,2660.1,2658.7,3.76115]
[1727766043107,5.14082171,2660.1,2658.8,0.376115]